[Event "Titled Tuesday Blitz June 29 2021"]
[White "ChessWarrior7197"]
[Black "Murad_Ibrahimli"]
[WhiteElo "2982"]
[BlackElo "2837"]
[Result "1/2-1/2"]
[Round "08"]
[TimeControl "180+1"]
[Date "2021.06.29"]
[WhiteClock "0:00:03"]
[BlackClock "0:00:03"]

1. d4 {[%clk 0:03:00]}  Nf6 {[%clk 0:03:00]} 2. c4 {[%clk 0:03:00]}  e6 {[%clk 0:02:59]} 3. Nc3 {[%clk 0:03:00]}  Bb4 {[%clk 0:02:58]} 4. g3 {[%clk 0:03:01]}  c5 {[%clk 0:02:57]} 5. Nf3 {[%clk 0:03:01]}  Ne4 {[%clk 0:02:57]} 6. Qd3 {[%clk 0:03:00]}  Qa5 {[%clk 0:02:56]} 7. Qxe4 {[%clk 0:03:00]}  Bxc3+ {[%clk 0:02:56]} 8. Bd2 {[%clk 0:03:01]}  Bxd2+ {[%clk 0:02:56]} 9. Nxd2 {[%clk 0:03:02]}  Qb6 {[%clk 0:02:57]} 10. dxc5 {[%clk 0:02:55]}  Qxb2 {[%clk 0:02:56]} 11. Rb1 {[%clk 0:02:56]}  Qc3 {[%clk 0:02:56]} 12. Qd3 {[%clk 0:02:56]}  Qxd3 {[%clk 0:02:55]} 13. exd3 {[%clk 0:02:57]}  Na6 {[%clk 0:02:49]} 14. Ne4 {[%clk 0:02:49]}  Ke7 {[%clk 0:02:43]} 15. d4 {[%clk 0:02:49]}  Rb8 {[%clk 0:02:33]} 16. Bg2 {[%clk 0:02:36]}  b6 {[%clk 0:02:32]} 17. Kd2 {[%clk 0:02:34]}  bxc5 {[%clk 0:01:54]} 18. Nxc5 {[%clk 0:02:34]}  d6 {[%clk 0:01:33]} 19. Rxb8 {[%clk 0:02:25]}  Nxb8 {[%clk 0:01:33]} 20. Rb1 {[%clk 0:02:25]}  dxc5 {[%clk 0:01:25]} 21. Rxb8 {[%clk 0:02:25]}  cxd4 {[%clk 0:01:25]} 22. c5 {[%clk 0:02:25]}  Kd7 {[%clk 0:01:14]} 23. Ra8 {[%clk 0:02:24]}  e5 {[%clk 0:01:01]} 24. Bd5 {[%clk 0:02:23]}  Rf8 {[%clk 0:00:34]} 25. Rxa7+ {[%clk 0:02:23]}  Kd8 {[%clk 0:00:35]} 26. a4 {[%clk 0:02:21]}  f5 {[%clk 0:00:28]} 27. a5 {[%clk 0:02:19]}  Rf6 {[%clk 0:00:27]} 28. Rxg7 {[%clk 0:01:41]}  Ra6 {[%clk 0:00:26]} 29. c6 {[%clk 0:01:41]}  Rxa5 {[%clk 0:00:22]} 30. c7+ {[%clk 0:01:42]}  Ke8 {[%clk 0:00:22]} 31. Bc6+ {[%clk 0:01:43]}  Kf8 {[%clk 0:00:21]} 32. Rxh7 {[%clk 0:01:44]}  Rc5 {[%clk 0:00:21]} 33. Rh8+ {[%clk 0:01:18]}  Ke7 {[%clk 0:00:16]} 34. Rxc8 {[%clk 0:01:14]}  Rxc6 {[%clk 0:00:15]} 35. Rh8 {[%clk 0:01:01]}  Rxc7 {[%clk 0:00:15]} 36. Rh7+ {[%clk 0:01:01]}  Kd6 {[%clk 0:00:16]} 37. Rxc7 {[%clk 0:01:02]}  Kxc7 {[%clk 0:00:16]} 38. h4 {[%clk 0:01:03]}  Kd6 {[%clk 0:00:16]} 39. h5 {[%clk 0:01:04]}  Ke6 {[%clk 0:00:16]} 40. Kd3 {[%clk 0:01:05]}  Kf6 {[%clk 0:00:10]} 41. f4 {[%clk 0:01:05]}  e4+ {[%clk 0:00:10]} 42. Kxd4 {[%clk 0:01:06]}  Kg7 {[%clk 0:00:11]} 43. g4 {[%clk 0:00:55]}  fxg4 {[%clk 0:00:11]} 44. f5 {[%clk 0:00:55]}  g3 {[%clk 0:00:06]} 45. Ke3 {[%clk 0:00:56]}  Kf7 {[%clk 0:00:02]} 46. h6 {[%clk 0:00:54]}  Kf6 {[%clk 0:00:03]} 47. Ke2 {[%clk 0:00:54]}  Kf7 {[%clk 0:00:02]} 48. Ke3 {[%clk 0:00:55]}  Kf6 {[%clk 0:00:03]} 49. Ke2 {[%clk 0:00:30]}  Kf7 {[%clk 0:00:03]} 50. Ke3 {[%clk 0:00:03]} 1/2-1/2


[Site "https://www.chess.com"]

[Event "Titled Tuesday Blitz June 29 2021"]
[White "DenLaz"]
[Black "Aborigen_came"]
[WhiteElo "2844"]
[BlackElo "2672"]
[Result "1-0"]
[Round "08"]
[TimeControl "180+1"]
[Date "2021.06.29"]
[WhiteClock "0:00:20"]
[BlackClock "0:00:11"]

1. d4 {[%clk 0:03:00]}  Nc6 {[%clk 0:03:00]} 2. d5 {[%clk 0:02:56]}  Ne5 {[%clk 0:02:58]} 3. e4 {[%clk 0:02:54]}  e6 {[%clk 0:02:58]} 4. Nf3 {[%clk 0:02:45]}  Nxf3+ {[%clk 0:02:55]} 5. Qxf3 {[%clk 0:02:45]}  e5 {[%clk 0:02:53]} 6. Be3 {[%clk 0:02:37]}  Nf6 {[%clk 0:02:51]} 7. Nd2 {[%clk 0:02:34]}  Bb4 {[%clk 0:02:48]} 8. c3 {[%clk 0:02:33]}  Be7 {[%clk 0:02:42]} 9. Qg3 {[%clk 0:02:03]}  O-O {[%clk 0:02:31]} 10. Qxe5 {[%clk 0:02:01]}  Ng4 {[%clk 0:02:31]} 11. Qf4 {[%clk 0:02:01]}  Nxe3 {[%clk 0:02:30]} 12. Qxe3 {[%clk 0:02:01]}  c6 {[%clk 0:02:10]} 13. Bc4 {[%clk 0:01:53]}  b5 {[%clk 0:02:07]} 14. Bb3 {[%clk 0:01:52]}  Bb7 {[%clk 0:02:02]} 15. O-O {[%clk 0:01:49]}  cxd5 {[%clk 0:01:52]} 16. Bxd5 {[%clk 0:01:40]}  Bxd5 {[%clk 0:01:52]} 17. exd5 {[%clk 0:01:41]}  Re8 {[%clk 0:01:47]} 18. Qf3 {[%clk 0:01:39]}  Bc5 {[%clk 0:01:44]} 19. Ne4 {[%clk 0:01:37]}  Rc8 {[%clk 0:01:37]} 20. Rfe1 {[%clk 0:01:35]}  d6 {[%clk 0:01:35]} 21. Re2 {[%clk 0:01:28]}  Bb6 {[%clk 0:01:33]} 22. Rae1 {[%clk 0:01:27]}  Qd7 {[%clk 0:01:10]} 23. Qg3 {[%clk 0:01:04]}  Kh8 {[%clk 0:00:40]} 24. Qf4 {[%clk 0:00:30]}  Bc7 {[%clk 0:00:16]} 25. Ng5 {[%clk 0:00:27]}  Kg8 {[%clk 0:00:11]} 26. Qf5 {[%clk 0:00:20]} 1-0


[Site "https://www.chess.com"]

[Event "Titled Tuesday Blitz June 29 2021"]
[White "GM_Crest"]
[Black "FairChess_on_YouTube"]
[WhiteElo "2801"]
[BlackElo "2982"]
[Result "1/2-1/2"]
[Round "08"]
[TimeControl "180+1"]
[Date "2021.06.29"]
[WhiteClock "0:00:02"]
[BlackClock "0:00:10"]

1. d4 {[%clk 0:03:00]}  Nf6 {[%clk 0:02:59]} 2. c4 {[%clk 0:03:00]}  c5 {[%clk 0:02:59]} 3. d5 {[%clk 0:03:00]}  e5 {[%clk 0:02:59]} 4. Nc3 {[%clk 0:03:00]}  d6 {[%clk 0:02:59]} 5. e4 {[%clk 0:03:00]}  Be7 {[%clk 0:03:00]} 6. Bd3 {[%clk 0:02:56]}  Nbd7 {[%clk 0:02:59]} 7. h3 {[%clk 0:02:56]}  h5 {[%clk 0:02:58]} 8. Nf3 {[%clk 0:02:56]}  h4 {[%clk 0:02:57]} 9. Be3 {[%clk 0:02:43]}  Nf8 {[%clk 0:02:56]} 10. Qd2 {[%clk 0:02:40]}  Ng6 {[%clk 0:02:56]} 11. O-O-O {[%clk 0:02:35]}  a6 {[%clk 0:02:54]} 12. a4 {[%clk 0:02:33]}  Bd7 {[%clk 0:02:48]} 13. Kc2 {[%clk 0:02:24]}  Qa5 {[%clk 0:02:37]} 14. Ra1 {[%clk 0:02:22]}  Nh5 {[%clk 0:02:35]} 15. b3 {[%clk 0:02:03]}  Ngf4 {[%clk 0:02:28]} 16. Rhg1 {[%clk 0:01:58]}  Nxd3 {[%clk 0:02:17]} 17. Qxd3 {[%clk 0:01:55]}  O-O {[%clk 0:02:16]} 18. g4 {[%clk 0:01:05]}  hxg3 {[%clk 0:02:14]} 19. fxg3 {[%clk 0:01:06]}  f5 {[%clk 0:02:13]} 20. Nd2 {[%clk 0:00:57]}  f4 {[%clk 0:01:12]} 21. gxf4 {[%clk 0:00:50]}  exf4 {[%clk 0:01:13]} 22. Bf2 {[%clk 0:00:38]}  Bf6 {[%clk 0:01:13]} 23. Nf3 {[%clk 0:00:33]}  Rae8 {[%clk 0:01:09]} 24. Be1 {[%clk 0:00:18]}  Ng3 {[%clk 0:01:04]} 25. Bd2 {[%clk 0:00:17]}  Bxh3 {[%clk 0:00:52]} 26. Ne2 {[%clk 0:00:12]}  Qc7 {[%clk 0:00:46]} 27. Nxf4 {[%clk 0:00:12]}  Bxa1 {[%clk 0:00:40]} 28. Rxg3 {[%clk 0:00:12]}  Bc8 {[%clk 0:00:37]} 29. Ng5 {[%clk 0:00:12]}  Be5 {[%clk 0:00:33]} 30. Rf3 {[%clk 0:00:10]}  Bg4 {[%clk 0:00:29]} 31. Rf1 {[%clk 0:00:10]}  Qe7 {[%clk 0:00:28]} 32. Ng6 {[%clk 0:00:09]}  Qd8 {[%clk 0:00:19]} 33. Nxf8 {[%clk 0:00:08]}  Rxf8 {[%clk 0:00:19]} 34. Ne6 {[%clk 0:00:08]}  Bxe6 {[%clk 0:00:18]} 35. Rxf8+ {[%clk 0:00:08]}  Kxf8 {[%clk 0:00:13]} 36. dxe6 {[%clk 0:00:08]}  Qf6 {[%clk 0:00:13]} 37. Qd5 {[%clk 0:00:08]}  g5 {[%clk 0:00:12]} 38. Qxb7 {[%clk 0:00:07]}  Qxe6 {[%clk 0:00:12]} 39. Qxa6 {[%clk 0:00:06]}  g4 {[%clk 0:00:11]} 40. Qa8+ {[%clk 0:00:06]}  Kg7 {[%clk 0:00:11]} 41. Qd8 {[%clk 0:00:06]}  g3 {[%clk 0:00:09]} 42. Qg5+ {[%clk 0:00:06]}  Qg6 {[%clk 0:00:09]} 43. Qe7+ {[%clk 0:00:06]}  Qf7 {[%clk 0:00:08]} 44. Qg5+ {[%clk 0:00:03]}  Qg6 {[%clk 0:00:08]} 45. Qe7+ {[%clk 0:00:04]}  Kg8 {[%clk 0:00:09]} 46. Qd8+ {[%clk 0:00:02]}  Kf7 {[%clk 0:00:09]} 47. Qd7+ {[%clk 0:00:02]}  Kf8 {[%clk 0:00:08]} 48. Qd8+ {[%clk 0:00:02]}  Kf7 {[%clk 0:00:09]} 49. Qd7+ {[%clk 0:00:02]}  Kf6 {[%clk 0:00:09]} 50. Qd8+ {[%clk 0:00:02]}  Ke6 {[%clk 0:00:09]} 51. Qc8+ {[%clk 0:00:02]}  Ke7 {[%clk 0:00:09]} 52. Qc7+ {[%clk 0:00:02]}  Kf8 {[%clk 0:00:10]} 53. Qd8+ {[%clk 0:00:03]}  Kg7 {[%clk 0:00:10]} 54. Qe7+ {[%clk 0:00:02]} 1/2-1/2


[Site "https://www.chess.com"]

[Event "Titled Tuesday Blitz June 29 2021"]
[White "Riazantsev"]
[Black "ChristopherYoo"]
[WhiteElo "2748"]
[BlackElo "2935"]
[Result "1-0"]
[Round "08"]
[TimeControl "180+1"]
[Date "2021.06.29"]
[WhiteClock "0:00:59"]
[BlackClock "0:00:02"]

1. d4 {[%clk 0:03:00]}  Nf6 {[%clk 0:02:59]} 2. Nf3 {[%clk 0:03:00]}  d5 {[%clk 0:02:59]} 3. Bf4 {[%clk 0:02:59]}  Bf5 {[%clk 0:02:58]} 4. e3 {[%clk 0:02:59]}  e6 {[%clk 0:02:57]} 5. Be2 {[%clk 0:02:59]}  Bd6 {[%clk 0:02:57]} 6. O-O {[%clk 0:02:57]}  O-O {[%clk 0:02:56]} 7. Nbd2 {[%clk 0:02:56]}  Qe7 {[%clk 0:02:53]} 8. Ne5 {[%clk 0:02:54]}  Nbd7 {[%clk 0:02:51]} 9. c4 {[%clk 0:02:51]}  Bxe5 {[%clk 0:02:47]} 10. dxe5 {[%clk 0:02:49]}  Ne4 {[%clk 0:02:46]} 11. Nxe4 {[%clk 0:02:38]}  dxe4 {[%clk 0:02:46]} 12. Qc2 {[%clk 0:02:31]}  Nc5 {[%clk 0:02:39]} 13. Bg3 {[%clk 0:02:06]}  Rfd8 {[%clk 0:02:23]} 14. Rad1 {[%clk 0:02:06]}  Nd3 {[%clk 0:02:13]} 15. Qc3 {[%clk 0:02:05]}  Rd7 {[%clk 0:02:07]} 16. Bxd3 {[%clk 0:02:02]}  exd3 {[%clk 0:02:06]} 17. f3 {[%clk 0:01:58]}  Qc5 {[%clk 0:02:06]} 18. Bf2 {[%clk 0:01:56]}  Qc6 {[%clk 0:01:16]} 19. e4 {[%clk 0:01:56]}  Bxe4 {[%clk 0:01:16]} 20. fxe4 {[%clk 0:01:56]}  Qxe4 {[%clk 0:01:17]} 21. Rfe1 {[%clk 0:01:53]}  Qf5 {[%clk 0:01:15]} 22. Rd2 {[%clk 0:01:47]}  Rad8 {[%clk 0:01:10]} 23. h3 {[%clk 0:01:47]}  h5 {[%clk 0:01:02]} 24. Re3 {[%clk 0:01:43]}  Kh7 {[%clk 0:00:47]} 25. Qc1 {[%clk 0:01:38]}  Rd4 {[%clk 0:00:44]} 26. b3 {[%clk 0:01:34]}  h4 {[%clk 0:00:39]} 27. Qe1 {[%clk 0:01:33]}  Rf4 {[%clk 0:00:16]} 28. Bxh4 {[%clk 0:01:28]}  Rdd4 {[%clk 0:00:15]} 29. Bg3 {[%clk 0:01:26]}  Rfe4 {[%clk 0:00:15]} 30. Qf2 {[%clk 0:01:18]}  Rxe3 {[%clk 0:00:01]} 31. Qxe3 {[%clk 0:01:17]}  c5 {[%clk 0:00:02]} 32. Qf3 {[%clk 0:01:14]}  Qg6 {[%clk 0:00:01]} 33. Kh2 {[%clk 0:01:13]}  b6 {[%clk 0:00:01]} 34. Bf2 {[%clk 0:01:11]}  Rd7 {[%clk 0:00:02]} 35. Qf4 {[%clk 0:01:09]}  Kg8 {[%clk 0:00:01]} 36. Be3 {[%clk 0:01:08]}  Rd8 {[%clk 0:00:02]} 37. g4 {[%clk 0:01:04]}  Rd7 {[%clk 0:00:02]} 38. Kg3 {[%clk 0:01:04]}  Kf8 {[%clk 0:00:02]} 39. h4 {[%clk 0:01:04]}  Ke8 {[%clk 0:00:03]} 40. h5 {[%clk 0:01:04]}  Qh7 {[%clk 0:00:03]} 41. Kf3 {[%clk 0:01:04]}  g6 {[%clk 0:00:01]} 42. h6 {[%clk 0:01:03]}  Kf8 {[%clk 0:00:01]} 43. g5 {[%clk 0:01:02]}  Kg8 {[%clk 0:00:01]} 44. Qf6 {[%clk 0:01:00]}  Kf8 {[%clk 0:00:02]} 45. Ke4 {[%clk 0:00:59]}  Kg8 {[%clk 0:00:02]} 46. Rxd3 {[%clk 0:00:59]} 1-0


[Site "https://www.chess.com"]

[Event "Titled Tuesday Blitz June 29 2021"]
[White "Sharpchess22"]
[Black "Grischuk"]
[WhiteElo "2880"]
[BlackElo "3077"]
[Result "0-1"]
[Round "08"]
[TimeControl "180+1"]
[Date "2021.06.29"]
[WhiteClock "0:00:20"]
[BlackClock "0:00:10"]

1. e4 {[%clk 0:03:00]}  c5 {[%clk 0:02:59]} 2. Nf3 {[%clk 0:03:00]}  d6 {[%clk 0:03:00]} 3. Bb5+ {[%clk 0:03:00]}  Bd7 {[%clk 0:03:00]} 4. a4 {[%clk 0:03:01]}  Nf6 {[%clk 0:02:58]} 5. Nc3 {[%clk 0:03:00]}  Nc6 {[%clk 0:02:54]} 6. O-O {[%clk 0:02:58]}  g6 {[%clk 0:02:51]} 7. Re1 {[%clk 0:02:54]}  Bg7 {[%clk 0:02:51]} 8. Bxc6 {[%clk 0:02:53]}  Bxc6 {[%clk 0:02:52]} 9. e5 {[%clk 0:02:54]}  dxe5 {[%clk 0:02:53]} 10. Nxe5 {[%clk 0:02:54]}  Rc8 {[%clk 0:02:54]} 11. d3 {[%clk 0:02:45]}  O-O {[%clk 0:02:52]} 12. Nxc6 {[%clk 0:02:43]}  Rxc6 {[%clk 0:02:53]} 13. Qf3 {[%clk 0:02:39]}  Qd7 {[%clk 0:02:41]} 14. Bf4 {[%clk 0:02:37]}  Rd8 {[%clk 0:02:26]} 15. b3 {[%clk 0:02:24]}  Ne8 {[%clk 0:02:05]} 16. Bd2 {[%clk 0:02:12]}  Nc7 {[%clk 0:01:59]} 17. Rac1 {[%clk 0:01:59]}  Ne6 {[%clk 0:01:59]} 18. Ne4 {[%clk 0:01:42]}  Nd4 {[%clk 0:01:58]} 19. Qg3 {[%clk 0:01:33]}  b6 {[%clk 0:01:54]} 20. Bf4 {[%clk 0:01:20]}  Re6 {[%clk 0:01:50]} 21. Be3 {[%clk 0:01:09]}  h6 {[%clk 0:01:31]} 22. Qh3 {[%clk 0:01:05]}  f5 {[%clk 0:01:26]} 23. Nd2 {[%clk 0:00:55]}  g5 {[%clk 0:01:12]} 24. Bxd4 {[%clk 0:00:51]}  cxd4 {[%clk 0:01:13]} 25. Rxe6 {[%clk 0:00:48]}  Qxe6 {[%clk 0:01:14]} 26. Kf1 {[%clk 0:00:47]}  g4 {[%clk 0:01:05]} 27. Qh4 {[%clk 0:00:46]}  Qf6 {[%clk 0:01:02]} 28. Qh5 {[%clk 0:00:34]}  Qg5 {[%clk 0:00:52]} 29. Qxg5 {[%clk 0:00:34]}  hxg5 {[%clk 0:00:53]} 30. Re1 {[%clk 0:00:34]}  Kf7 {[%clk 0:00:52]} 31. Nc4 {[%clk 0:00:33]}  Rh8 {[%clk 0:00:48]} 32. Kg1 {[%clk 0:00:34]}  Rc8 {[%clk 0:00:35]} 33. g3 {[%clk 0:00:30]}  a6 {[%clk 0:00:26]} 34. Re2 {[%clk 0:00:22]}  b5 {[%clk 0:00:23]} 35. axb5 {[%clk 0:00:22]}  axb5 {[%clk 0:00:24]} 36. Na3 {[%clk 0:00:22]}  Rc5 {[%clk 0:00:22]} 37. Kf1 {[%clk 0:00:22]}  e6 {[%clk 0:00:20]} 38. Ke1 {[%clk 0:00:22]}  Bf8 {[%clk 0:00:19]} 39. Kd1 {[%clk 0:00:22]}  Rd5 {[%clk 0:00:19]} 40. Nb1 {[%clk 0:00:21]}  Bb4 {[%clk 0:00:19]} 41. Nd2 {[%clk 0:00:21]}  Rd7 {[%clk 0:00:15]} 42. Re5 {[%clk 0:00:21]}  Rb7 {[%clk 0:00:13]} 43. f3 {[%clk 0:00:20]}  Kf6 {[%clk 0:00:12]} 44. Re2 {[%clk 0:00:20]}  Bxd2 {[%clk 0:00:11]} 45. Rxd2 {[%clk 0:00:20]}  gxf3 {[%clk 0:00:12]} 46. Ke1 {[%clk 0:00:20]}  g4 {[%clk 0:00:10]} 0-1


[Site "https://www.chess.com"]

[Event "Titled Tuesday Blitz June 29 2021"]
[White "TheBigBoss04"]
[Black "FMJoseHerrera"]
[WhiteElo "2775"]
[BlackElo "2587"]
[Result "1-0"]
[Round "08"]
[TimeControl "180+1"]
[Date "2021.06.29"]
[WhiteClock "0:01:32"]
[BlackClock "0:01:18"]

1. d4 {[%clk 0:03:00]}  Nf6 {[%clk 0:02:59]} 2. Nc3 {[%clk 0:03:01]}  c5 {[%clk 0:02:59]} 3. d5 {[%clk 0:03:00]}  g6 {[%clk 0:02:59]} 4. e4 {[%clk 0:03:00]}  Bg7 {[%clk 0:03:00]} 5. Nf3 {[%clk 0:03:00]}  O-O {[%clk 0:03:00]} 6. a4 {[%clk 0:02:42]}  e6 {[%clk 0:02:59]} 7. Be2 {[%clk 0:02:41]}  exd5 {[%clk 0:02:58]} 8. exd5 {[%clk 0:02:41]}  d6 {[%clk 0:02:58]} 9. O-O {[%clk 0:02:42]}  Nbd7 {[%clk 0:02:55]} 10. Bf4 {[%clk 0:02:40]}  Nb8 {[%clk 0:02:37]} 11. Nd2 {[%clk 0:02:37]}  Ne8 {[%clk 0:02:23]} 12. Nc4 {[%clk 0:02:35]}  a6 {[%clk 0:02:18]} 13. Qd2 {[%clk 0:02:23]}  b6 {[%clk 0:02:08]} 14. Ne4 {[%clk 0:02:20]}  Bb7 {[%clk 0:01:42]} 15. Nexd6 {[%clk 0:02:15]}  Nxd6 {[%clk 0:01:42]} 16. Nxd6 {[%clk 0:02:16]}  Ra7 {[%clk 0:01:41]} 17. c3 {[%clk 0:02:09]}  Nd7 {[%clk 0:01:40]} 18. Nxb7 {[%clk 0:02:07]}  Rxb7 {[%clk 0:01:41]} 19. Bxa6 {[%clk 0:02:07]}  Ra7 {[%clk 0:01:41]} 20. Bb5 {[%clk 0:02:07]}  Nf6 {[%clk 0:01:42]} 21. d6 {[%clk 0:02:06]}  Ne4 {[%clk 0:01:42]} 22. Qd5 {[%clk 0:02:04]}  Nf6 {[%clk 0:01:42]} 23. Qc6 {[%clk 0:02:04]}  Nh5 {[%clk 0:01:41]} 24. Bg3 {[%clk 0:02:00]}  Qg5 {[%clk 0:01:41]} 25. d7 {[%clk 0:01:58]}  Nxg3 {[%clk 0:01:37]} 26. hxg3 {[%clk 0:01:58]}  h5 {[%clk 0:01:36]} 27. Rfe1 {[%clk 0:01:56]}  h4 {[%clk 0:01:34]} 28. gxh4 {[%clk 0:01:56]}  Qxh4 {[%clk 0:01:35]} 29. Re8 {[%clk 0:01:55]}  Bf6 {[%clk 0:01:31]} 30. Rd1 {[%clk 0:01:54]}  Bd8 {[%clk 0:01:27]} 31. Qd6 {[%clk 0:01:52]}  Qh6 {[%clk 0:01:24]} 32. Rde1 {[%clk 0:01:51]}  Bc7 {[%clk 0:01:17]} 33. Rxf8+ {[%clk 0:01:38]}  Qxf8 {[%clk 0:01:17]} 34. Qxf8+ {[%clk 0:01:32]}  Kxf8 {[%clk 0:01:18]} 35. Re8+ {[%clk 0:01:32]} 1-0


[Site "https://www.chess.com"]

[Event "Titled Tuesday Blitz June 29 2021"]
[White "louis198"]
[Black "seorobert1971"]
[WhiteElo "2614"]
[BlackElo "2782"]
[Result "1-0"]
[Round "08"]
[TimeControl "180+1"]
[Date "2021.06.29"]
[WhiteClock "0:01:16"]
[BlackClock "0:02:04"]

1. d4 {[%clk 0:02:56]}  d5 {[%clk 0:03:00]} 2. c4 {[%clk 0:02:56]}  c6 {[%clk 0:02:59]} 3. Nc3 {[%clk 0:02:54]}  Nf6 {[%clk 0:03:00]} 4. Nf3 {[%clk 0:02:52]}  e6 {[%clk 0:03:00]} 5. Bg5 {[%clk 0:02:52]}  Nbd7 {[%clk 0:02:59]} 6. e3 {[%clk 0:02:53]}  Qa5 {[%clk 0:02:59]} 7. Bxf6 {[%clk 0:02:53]}  Nxf6 {[%clk 0:02:59]} 8. Nd2 {[%clk 0:02:54]}  Be7 {[%clk 0:02:57]} 9. Bd3 {[%clk 0:02:51]}  O-O {[%clk 0:02:56]} 10. O-O {[%clk 0:02:48]}  Qd8 {[%clk 0:02:56]} 11. Qc2 {[%clk 0:02:34]}  h6 {[%clk 0:02:55]} 12. Rfd1 {[%clk 0:02:27]}  b6 {[%clk 0:02:54]} 13. Rac1 {[%clk 0:02:21]}  Bb7 {[%clk 0:02:54]} 14. h3 {[%clk 0:02:18]}  a6 {[%clk 0:02:53]} 15. a3 {[%clk 0:02:17]}  Qd7 {[%clk 0:02:50]} 16. Nf3 {[%clk 0:02:12]}  Rfc8 {[%clk 0:02:47]} 17. e4 {[%clk 0:02:09]}  dxe4 {[%clk 0:02:44]} 18. Nxe4 {[%clk 0:02:03]}  Nxe4 {[%clk 0:02:44]} 19. Bxe4 {[%clk 0:02:03]}  Qc7 {[%clk 0:02:44]} 20. c5 {[%clk 0:02:00]}  a5 {[%clk 0:02:43]} 21. b4 {[%clk 0:01:58]}  axb4 {[%clk 0:02:42]} 22. axb4 {[%clk 0:01:58]}  bxc5 {[%clk 0:02:42]} 23. dxc5 {[%clk 0:01:53]}  Ba6 {[%clk 0:02:41]} 24. Nd4 {[%clk 0:01:47]}  Bb7 {[%clk 0:02:40]} 25. Qc4 {[%clk 0:01:37]}  Bf6 {[%clk 0:02:39]} 26. b5 {[%clk 0:01:27]}  Bxd4 {[%clk 0:02:31]} 27. b6 {[%clk 0:01:20]}  Bxf2+ {[%clk 0:02:31]} 28. Kxf2 {[%clk 0:01:21]}  Qf4+ {[%clk 0:02:31]} 29. Bf3 {[%clk 0:01:21]}  Qxc4 {[%clk 0:02:23]} 30. Rxc4 {[%clk 0:01:22]}  Ra5 {[%clk 0:02:23]} 31. Rd7 {[%clk 0:01:22]}  Ba6 {[%clk 0:02:22]} 32. Rc2 {[%clk 0:01:18]}  Rb5 {[%clk 0:02:08]} 33. Ra7 {[%clk 0:01:16]}  Ra5 {[%clk 0:02:04]} 34. Be2 {[%clk 0:01:16]} 1-0


[Site "https://www.chess.com"]

[Event "Titled Tuesday Blitz June 29 2021"]
[White "tsaruk_maks"]
[Black "Khamrakulov_Djurabek"]
[WhiteElo "2649"]
[BlackElo "2830"]
[Result "1-0"]
[Round "08"]
[TimeControl "180+1"]
[Date "2021.06.29"]
[WhiteClock "0:00:39"]
[BlackClock "0:00:50"]

1. e4 {[%clk 0:03:00]}  e6 {[%clk 0:02:48]} 2. d4 {[%clk 0:03:00]}  d5 {[%clk 0:02:48]} 3. Nd2 {[%clk 0:03:00]}  dxe4 {[%clk 0:02:48]} 4. Nxe4 {[%clk 0:03:00]}  Nd7 {[%clk 0:02:49]} 5. Nf3 {[%clk 0:02:59]}  Ngf6 {[%clk 0:02:49]} 6. Nxf6+ {[%clk 0:03:00]}  Nxf6 {[%clk 0:02:49]} 7. c3 {[%clk 0:03:00]}  Be7 {[%clk 0:02:48]} 8. Bd3 {[%clk 0:02:55]}  O-O {[%clk 0:02:47]} 9. Qe2 {[%clk 0:02:53]}  c5 {[%clk 0:02:45]} 10. dxc5 {[%clk 0:02:51]}  Bxc5 {[%clk 0:02:43]} 11. Bg5 {[%clk 0:02:51]}  Be7 {[%clk 0:02:40]} 12. O-O-O {[%clk 0:02:51]}  Qa5 {[%clk 0:02:38]} 13. Kb1 {[%clk 0:02:49]}  Rd8 {[%clk 0:02:38]} 14. Ne5 {[%clk 0:02:16]}  h6 {[%clk 0:02:32]} 15. Bh4 {[%clk 0:02:11]}  Qb6 {[%clk 0:02:19]} 16. g4 {[%clk 0:01:53]}  Nd5 {[%clk 0:02:19]} 17. Bxe7 {[%clk 0:01:42]}  Nxe7 {[%clk 0:02:18]} 18. Qe4 {[%clk 0:01:37]}  g6 {[%clk 0:02:13]} 19. Qf4 {[%clk 0:01:35]}  f5 {[%clk 0:02:01]} 20. Qxh6 {[%clk 0:01:30]}  Bd7 {[%clk 0:01:38]} 21. Nxg6 {[%clk 0:01:26]}  Nxg6 {[%clk 0:01:38]} 22. Qxg6+ {[%clk 0:01:26]}  Kf8 {[%clk 0:01:38]} 23. gxf5 {[%clk 0:01:22]}  exf5 {[%clk 0:01:37]} 24. Bxf5 {[%clk 0:01:01]}  Qxg6 {[%clk 0:01:36]} 25. Bxg6 {[%clk 0:01:01]}  Bc6 {[%clk 0:01:36]} 26. Rhe1 {[%clk 0:00:56]}  Kg7 {[%clk 0:01:15]} 27. Rxd8 {[%clk 0:00:55]}  Rxd8 {[%clk 0:01:14]} 28. Be4 {[%clk 0:00:55]}  Re8 {[%clk 0:00:51]} 29. Rg1+ {[%clk 0:00:48]}  Kf6 {[%clk 0:00:51]} 30. Bxc6 {[%clk 0:00:38]}  bxc6 {[%clk 0:00:52]} 31. Rg4 {[%clk 0:00:38]}  Re1+ {[%clk 0:00:52]} 32. Kc2 {[%clk 0:00:38]}  Re2+ {[%clk 0:00:52]} 33. Kb3 {[%clk 0:00:38]}  Rxf2 {[%clk 0:00:53]} 34. Rc4 {[%clk 0:00:39]}  Rxh2 {[%clk 0:00:50]} 35. Rxc6+ {[%clk 0:00:39]}  Ke5 {[%clk 0:00:50]} 36. Rc7 {[%clk 0:00:39]} 1-0


[Site "https://www.chess.com"]

[Event "Titled Tuesday Blitz June 29 2021"]
[White "Alexander_Donchenko"]
[Black "Hikaru"]
[WhiteElo "2868"]
[BlackElo "3163"]
[Result "0-1"]
[Round "09"]
[TimeControl "180+1"]
[Date "2021.06.29"]
[WhiteClock "0:00:01"]
[BlackClock "0:00:14"]

1. Nf3 {[%clk 0:03:00]}  d5 {[%clk 0:02:57]} 2. g3 {[%clk 0:03:01]}  g6 {[%clk 0:02:55]} 3. Bg2 {[%clk 0:03:01]}  Bg7 {[%clk 0:02:56]} 4. d4 {[%clk 0:03:01]}  Nd7 {[%clk 0:02:56]} 5. O-O {[%clk 0:03:01]}  Ngf6 {[%clk 0:02:54]} 6. c4 {[%clk 0:02:58]}  dxc4 {[%clk 0:02:54]} 7. Na3 {[%clk 0:02:53]}  Nb6 {[%clk 0:02:55]} 8. Ne5 {[%clk 0:02:46]}  c6 {[%clk 0:02:43]} 9. Naxc4 {[%clk 0:02:45]}  Nxc4 {[%clk 0:02:43]} 10. Nxc4 {[%clk 0:02:46]}  Be6 {[%clk 0:02:43]} 11. b3 {[%clk 0:02:38]}  O-O {[%clk 0:02:37]} 12. Bb2 {[%clk 0:02:37]}  Bd5 {[%clk 0:02:37]} 13. f3 {[%clk 0:02:31]}  Nd7 {[%clk 0:02:35]} 14. e4 {[%clk 0:02:16]}  Bxc4 {[%clk 0:02:35]} 15. bxc4 {[%clk 0:02:16]}  c5 {[%clk 0:02:12]} 16. e5 {[%clk 0:02:14]}  Nb6 {[%clk 0:01:56]} 17. Qb3 {[%clk 0:02:02]}  cxd4 {[%clk 0:01:52]} 18. f4 {[%clk 0:02:02]}  Rc8 {[%clk 0:01:38]} 19. Rac1 {[%clk 0:01:57]}  Nd7 {[%clk 0:01:37]} 20. Bxd4 {[%clk 0:01:50]}  b6 {[%clk 0:01:36]} 21. Qa3 {[%clk 0:01:42]}  Rc7 {[%clk 0:01:27]} 22. Rfd1 {[%clk 0:01:30]}  Qc8 {[%clk 0:01:27]} 23. Kh1 {[%clk 0:01:29]}  e6 {[%clk 0:01:24]} 24. Bg1 {[%clk 0:01:05]}  Re8 {[%clk 0:01:22]} 25. Rd2 {[%clk 0:01:04]}  Bf8 {[%clk 0:01:21]} 26. Qa4 {[%clk 0:01:04]}  Be7 {[%clk 0:00:51]} 27. Rcd1 {[%clk 0:00:58]}  Nf8 {[%clk 0:00:51]} 28. h4 {[%clk 0:00:26]}  h5 {[%clk 0:00:50]} 29. Kh2 {[%clk 0:00:25]}  Rd8 {[%clk 0:00:45]} 30. Rxd8 {[%clk 0:00:25]}  Bxd8 {[%clk 0:00:46]} 31. Qe8 {[%clk 0:00:24]}  Be7 {[%clk 0:00:45]} 32. Qxc8 {[%clk 0:00:24]}  Rxc8 {[%clk 0:00:46]} 33. Bf1 {[%clk 0:00:19]}  Bc5 {[%clk 0:00:46]} 34. Bxc5 {[%clk 0:00:18]}  Rxc5 {[%clk 0:00:47]} 35. Kg2 {[%clk 0:00:17]}  Rc7 {[%clk 0:00:45]} 36. Rd8 {[%clk 0:00:16]}  Kg7 {[%clk 0:00:45]} 37. Kf3 {[%clk 0:00:12]}  Nd7 {[%clk 0:00:39]} 38. Ke3 {[%clk 0:00:12]}  Nc5 {[%clk 0:00:39]} 39. Bg2 {[%clk 0:00:08]}  Na6 {[%clk 0:00:29]} 40. Kd4 {[%clk 0:00:04]}  Nb4 {[%clk 0:00:29]} 41. a4 {[%clk 0:00:04]}  Nc2+ {[%clk 0:00:22]} 42. Kc3 {[%clk 0:00:02]}  Ne3 {[%clk 0:00:22]} 43. Bf3 {[%clk 0:00:02]}  Nxc4 {[%clk 0:00:17]} 44. Kb4 {[%clk 0:00:03]}  Ne3 {[%clk 0:00:14]} 45. Kb5 {[%clk 0:00:02]}  Rc5+ {[%clk 0:00:14]} 46. Kb4 {[%clk 0:00:01]}  Nf5 {[%clk 0:00:14]} 0-1


[Site "https://www.chess.com"]